Cogmind - Beta 13 @@@ ROGUE MODE // 2024.04.30 @ 19:48:12 Player: satan5 Result: Destroyed by L6-J0R(R) with Subdweller Laser Performance ------------- Evolutions (0) 0 Regions Visited (2) 400 Robots Destroyed (22) 110 Value Destroyed (554) 554 Prototype IDs (1) 20 Alien Tech Used (0) 0 Bonus (63) 63 TOTAL SCORE: 1147 Bonus ------- Follower Combat Kills 63 Cogmind --------- Core Integrity 0/250 Matter 300/300 Energy 130/170 System Corruption 0% Temperature Cool (6) Movement Walking (280) Ox2 Location -10/Subcaves Parts ------- > --- POWER (1) -------- Makeshift Power Source > --- PROPULSION (2) --- Makeshift Leg > --- UTILITY (2) ------ Large Storage Unit V3-11A's Pendant > --- WEAPON (2) ------- Subdweller Beam Cannon Subdweller Beam Cannon > --- INVENTORY (15) --- Disposable Heat Sink Structural Scanner Subdweller Optics Signal Interpreter Improved Terrain Scanner Subdweller Beam Cannon Subdweller Machine Gun Subdweller Machine Gun Subdweller Machine Gun Battle Cannon Rocket Launcher Rocket Launcher Dirty Datajack (20) Multitool Hammer Peak State ------------ > --- POWER ------------ Makeshift Power Source > --- PROPULSION ------- Makeshift Leg Subdweller Monowheel > --- UTILITY ---------- Large Storage Unit V3-11A's Pendant > --- WEAPON ----------- Subdweller Beam Cannon Subdweller Beam Cannon > --- INVENTORY -------- Disposable Heat Sink Structural Scanner Subdweller Optics Signal Interpreter Improved Terrain Scanner Subdweller Beam Cannon Subdweller Machine Gun Subdweller Machine Gun Subdweller Machine Gun Battle Cannon Rocket Launcher Rocket Launcher Dirty Datajack Multitool Hammer [Rating: 21] Favorites ----------- Power Makeshift Power Source Engine Makeshift Power Source Propulsion Light Treads Treads Light Treads Leg Makeshift Leg Wheel Wheel Utility Large Storage Unit Device Structural Scanner Storage Large Storage Unit Weapon Subdweller Beam Cannon Energy Gun Spread Laser Energy Cannon Subdweller Beam Cannon Ballistic Gun Light Assault Rifle Ballistic Cannon Battle Cannon Launcher Grenade Launcher Impact Weapon Hammer Build | -11 -10 -10 ------- Run | Yrd Mat Sub Slots Evolved . | . . . Power . | . . . Propulsion . | . . . Utility . | . . . Weapon . | . . . Parts Attached 31 | 6 10 15 Power 5 | 1 1 3 Engine 5 | 1 1 3 Core . | . . . Reactor . | . . . Propulsion 5 | 2 . 3 Treads 2 | 2 . . Leg 1 | . . 1 Wheel 2 | . . 2 Hover . | . . . Flight . | . . . Utility 5 | 1 3 1 Device 3 | . 2 1 Storage 2 | 1 1 . Processor . | . . . Hackware . | . . . Protection . | . . . Artifact . | . . . Weapon 16 | 2 6 8 Energy Gun 8 | 1 3 4 Energy Cannon 2 | . . 2 Ballistic Gun 1 | 1 . . Ballistic Cannon 1 | . . 1 Launcher 3 | . 2 1 Special Weapon . | . . . Impact Weapon 1 | . 1 . Slashing Weapon . | . . . Piercing Weapon . | . . . Special Melee Weapon . | . . . Unidentified Prototypes 1 | . . 1 Parts Lost 7 | . 1 6 Power 3 | . 1 2 Propulsion 2 | . . 2 Utility . | . . . Weapon 2 | . . 2 Highest Loss Streak 4 | . 1 4 To Critical Strikes 1 | . . 1 Average Slot Usage (%) 87 | . 95 84 Engine 13 | . 14 13 Treads 7 | . 28 1 Leg 7 | . . 9 Wheel 2 | . . 3 Device 13 | . 10 14 Storage 14 | . 14 14 Energy Gun 7 | . 22 2 Energy Cannon 16 | . . 22 Ballistic Cannon 1 | . . 1 Naked Turns . | . . . Heaviest Build 42 | 12 32 42 Greatest Support 40 | 40 40 40 Greatest Overweight (x) 13 | 3 . 13 Average Overweight (x) 2 | . . 3 Largest Inventory Capacity 15 | 8 15 15 Average Capacity 14 | 7 13 15 Most Carried 15 | 6 14 15 Average Carried 13 | 2 9 14 Final Capacity 15 | 8 15 15 Final Carried 15 | 3 14 15 Class Distribution -------------------- 79% | Mutant 20% | Scavenger-Mutant Dominant Class ---------------- Mutant | -10/Materials Mutant | -10/Subcaves Resources | -11 -10 -10 ----------- Run | Yrd Mat Sub Matter Collected 574 | 204 209 161 Remotely . | . . . Salvage Created 583 | 12 330 241 Parts 49 | 4 26 19 Haulers Intercepted 1 | . 1 . Recyclers Shooed . | . . . Parts Field Recycled . | . . . Retrieved Matter . | . . . Parts Self-Destructed 10 | . . 10 Prevented . | . . . Kills | -11 -10 -10 ------- Run | Yrd Mat Sub Combat Hostiles Destroyed 14 | . 9 5 Guns 7 | . 4 3 Cannons 1 | . . 1 AOE 6 | . 5 1 Classes Destroyed 10 | 1 6 3 Builder 2 | . 2 . Tunneler 2 | 1 1 . Hauler 1 | . 1 . Operator 2 | . 2 . Watcher 1 | . 1 . Swarmer 3 | . 3 . Grunt 6 | . 6 . Artisan 1 | . . 1 Cobbler 1 | . . 1 Subdweller 5 | . . 5 Best Kill Streak 6 | 1 6 1 Combat Bots Only 3 | . 3 1 Max Kills in Single Turn 3 | 1 3 1 Gunslinging . | . . . Exploded 3 | . 3 1 Melee . | . . . Uniques/NPCs Destroyed . | . . . Combat | -11 -10 -10 -------- Run | Yrd Mat Sub Hostile Shots Fired 67 | . 34 33 Missed 19 | . 11 8 Damage Taken 947 | . 303 644 Core 254 | . 18 236 Absorbed by Shields . | . . . Core Remaining (%) 100 | 100 . . Volleys Fired 70 | 4 28 38 Largest 2 | 2 2 2 Hottest 160 | 60 130 160 Shots Fired 138 | 8 55 75 Gun 90 | 8 50 32 Cannon 42 | . . 42 Launcher 6 | . 5 1 Special . | . . . Kinetic 21 | 4 14 3 Thermal 111 | 4 36 71 Explosive 6 | . 5 1 Electromagnetic . | . . . Robot Hit Streak 24 | 3 11 24 Robot Miss Streak 5 | 1 5 3 Penetration Max . | . . . Secondary Targets 1 | . . 1 Max Gunslinging Chain 1 | . . 1 Shots Hit Robots 92 | 6 41 45 Core Hits 65 | 2 42 21 Critical Kills . | . . . Critical Parts Destroyed 1 | 1 . . Critical Strikes 1 | 1 . . Destroy 1 | 1 . . Melee Attacks 4 | . 4 . Impact 4 | . 4 . Slashing . | . . . Piercing . | . . . Sneak Attacks 1 | . 1 . Combat Hostiles . | . . . Follow-up Attacks . | . . . Damage Inflicted 1524 | 54 902 568 Guns 665 | 54 437 174 Cannons 324 | . . 324 Explosions 462 | . 392 70 Melee 73 | . 73 . Ramming . | . . . Kinetic 88 | 23 65 . Thermal 932 | 31 403 498 Explosive 431 | . 361 70 Electromagnetic . | . . . Impact 73 | . 73 . Slashing . | . . . Piercing . | . . . Highest Corruption . | . . . Average Corruption . | . . . Corruption Purged . | . . . Corruption Blocked . | . . . Overload Shots . | . . . Overflow Damage 58 | . 43 15 Projectiles . | . . . Explosions 15 | . . 15 Melee 43 | . 43 . Knockbacks . | . . . Impact . | . . . Kinetic . | . . . Secondary . | . . . Self-Inflicted Damage 32 | . . 32 Shots 1 | . . 1 Rammed . | . . . Targets Rammed . | . . . Kicked . | . . . Crushed . | . . . Highest Temperature 225 | 40 225 222 Average Temperature 66 | 18 59 78 Received Heat Transfer 294 | . 150 144 Siege Activations . | . . . Robots Corrupted . | . . . Combat Hostiles . | . . . Parts Fried 3 | . 3 . Impact Corruptions 1 | . 1 . Robots Melted . | . . . Combat Hostiles . | . . . Parts Melted . | . . . Heat Transferred 1309 | 75 570 664 Parts Sabotaged . | . . . Parts Stolen . | . . . Parts Stripped . | . . . Power Chain Reactions . | . . . Alert | -11 -10 -10 ------- Run | Yrd Mat Sub Peak Influence 281 | 5 281 . Initial 3 | . 3 . Average 131 | 3 143 . Maximum Alert Level 1 | . 1 . Low Security (%) 79 | 100 77 . Level 1 20 | . 22 . Level 2 . | . . . Level 3 . | . . . Level 4 . | . . . Level 5 . | . . . High Security . | . . . Max Security . | . . . Squads Dispatched 3 | . 3 . Investigation 1 | . 1 . Extermination . | . . . Reinforcement 2 | . 2 . Assault . | . . . Garrison . | . . . Intercept . | . . . Searches Triggered . | . . . Construction Impeded . | . . . Haulers Reinforced . | . . . Active Scanning Responses . | . . . Cargo Convoy Interrupts . | . . . Stealth | -11 -10 -10 --------- Run | Yrd Mat Sub Distress Signals 2 | . 2 . Communications Jammed . | . . . Distress Signals . | . . . Times Spotted 25 | . 16 9 Peak Tracking Total 3 | . 3 2 Tactical Retreats 1 | . 1 . Traps | -11 -10 -10 ------- Run | Yrd Mat Sub Traps Triggered 1 | . 1 . Indirectly . | . . . Trap Hack Attempts . | . . . Triggered . | . . . Disarmed . | . . . Reprogrammed . | . . . Reused . | . . . Traps Extracted . | . . . Installed . | . . . Triggered . | . . . Machines | -11 -10 -10 ---------- Run | Yrd Mat Sub Machines Disabled 2 | . 2 . Max in Single Turn 1 | . 1 . Machines Repaired . | . . . Machines Dismantled . | . . . Machines Sabotaged . | . . . Overloaded Fab Kills . | . . . Hacking | -11 -10 -10 --------- Run | Yrd Mat Sub Machines Accessed 4 | . 4 . Terminals 4 | . 4 . Fabricators . | . . . Repair Stations . | . . . Recycling Units . | . . . Scanalyzers . | . . . Garrison Access . | . . . Total Hacks 8 | . 8 . Successful 2 | . 2 . Failed 6 | . 6 . Catastrophic 3 | . 3 . Database Lockouts . | . . . Manual 3 | . 3 . Terminals 8 | . 8 . Fabricators . | . . . Repair Stations . | . . . Recycling Units . | . . . Scanalyzers . | . . . Garrison Access . | . . . Terminal Hacks 2 | . 2 . Robot Analysis 1 | . 1 . Hauler Manifests 1 | . 1 . Fabricator Hacks . | . . . Repair Station Hacks . | . . . Recycling Unit Hacks . | . . . Scanalyzer . | . . . Garrison Access Hacks . | . . . Unauthorized Hacks . | . . . Terminals . | . . . Fabricators . | . . . Repair Stations . | . . . Recycling Units . | . . . Scanalyzers . | . . . Garrison Access . | . . . Data Cores Recovered . | . . . Used . | . . . Hacking Detections 4 | . 4 . Full Trace Events 1 | . 1 . Feedback Events . | . . . Feedback Blocked . | . . . Robot Schematics Acquired . | . . . Robots Built . | . . . Authchips . | . . . Time . | . . . Total Robot Build Rating . | . . . Part Schematics Acquired . | . . . Parts Built . | . . . Authchips . | . . . Time . | . . . Total Part Build Rating . | . . . Parts Repaired . | . . . Time . | . . . Parts Recycled . | . . . Recycled Matter . | . . . Retrieved Matter . | . . . Retrieved Components . | . . . Parts Scanalyzed . | . . . Part Schematics Acquired . | . . . Parts Damaged . | . . . Bothacking | -11 -10 -10 ------------ Run | Yrd Mat Sub Used RIF Installer . | . . . Robots Hacked . | . . . Non-combat . | . . . Combat . | . . . Robot Hacks Applied . | . . . Relay Couplers Released . | . . . Fabnet Peak Effective % . | . . . Robots Rewired . | . . . Allies Hacked . | . . . Hacks Repelled . | . . . Allies | -11 -10 -10 -------- Run | Yrd Mat Sub Total Allies 5 | . . 5 Largest Group 2 | . . 2 Highest-Rated Group 38 | . . 38 Highest-Rated Ally 19 | . . 19 Total Orders . | . . . Ally Attacks 19 | . . 19 Total Damage 269 | . . 269 Kills 2 | . . 2 Allies Corrupted . | . . . Allies Melted . | . . . Intel | -11 -10 -10 ------- Run | Yrd Mat Sub Robot Analysis Total 1 | . 1 . Derelict Logs Recovered 2 | . . 2 Drone Launches . | . . . Drone Recoveries . | . . . Exploration | -11 -10 -10 ------------- Run | Yrd Mat Sub Turns Passed 3516 | 83 870 2563 Spaces Moved 1449 | 46 391 1012 Core 122 | 16 . 106 Treads 465 | 30 391 44 Legs 361 | . . 361 Wheels 501 | . . 501 Hover . | . . . Flight . | . . . Fastest Speed 50 | 50 160 130 Average Speed 210 | 127 160 233 Slowest Speed 700 | 200 160 700 Overloaded Moves . | . . . Propulsion Burnouts . | . . . Robots Hopped . | . . . Cave-ins Triggered . | . . . Exploration Rate (%) 50 | 5 73 74 Regions Visited 2 Branch Regions 1 Pre-discovered Areas 1 | . . 1 Known Exits Taken . | . . . Unknown Exits Taken 2 | 1 1 . Scrap Searched 6 | . . 6 Spaces Dug 3 | . 1 2 Terrain Destroyed 46 | . 36 10 Melee 1 | . 1 . Projectile 6 | . . 6 AOE 39 | . 35 4 Terrain Rammed . | . . . Walls Destroyed . | . . . Machines Disabled . | . . . Actions | -11 -10 -10 --------- Run | Yrd Mat Sub Total 1774 | 62 576 1136 Wait 161 | . 118 43 Move 1447 | 45 390 1012 Hop . | . . . Pick Up 41 | 7 19 15 Fast Attach 6 | 2 1 3 Attach 11 | 4 3 4 Detach . | . . . Swap 14 | . 6 8 Drop 20 | . 7 13 Fire 70 | 4 28 38 Melee 4 | . 4 . Ram . | . . . Kick . | . . . Crush . | . . . Escape Stasis . | . . . Rewire . | . . . Trap . | . . . Miscellaneous . | . . . Route ------- -11/Scrapyard -10/Materials (discovered 3 exits: [*Mat] / [*Min] / [*Sub]) -10/Subcaves (discovered 2 exits: [*Mat x2]) History --------- Turn | Location | Event 8 | -11/Scrapyard | Discovered new exit (range 15) 84 | -11/Scrapyard | Entered Materials 330 | -10/Materials | Build established: Mutant 538 | -10/Materials | Discovered new exit (range 16) 736 | -10/Materials | Discovered new exit (range 13) 945 | -10/Materials | Discovered new exit (range 4) 954 | -10/Materials | Entered Subcaves 1065 | -10/Subcaves | Core integrity fell below 50% 1099 | -10/Subcaves | Lost 4 parts (1p2n1w) 1119 | -10/Subcaves | Discovered new exit (range 12) 1203 | -10/Subcaves | Shifting Twisted Machinery released Flamer 1433 | -10/Subcaves | Shifting Twisted Machinery released Sub. Beam Cannon 2188 | -10/Subcaves | Learned location of 1 exit from Materials 2292 | -10/Subcaves | Visited triangular shrine 2300 | -10/Subcaves | Found Prototype Device 2301 | -10/Subcaves | Identified V3-11A's Pendant 2306 | -10/Subcaves | Befriended Subdweller 2376 | -10/Subcaves | Shifting Twisted Machinery released Battle Rifle 2386 | -10/Subcaves | Befriended Subdweller 2392 | -10/Subcaves | Discovered new exit (range 8) 2398 | -10/Subcaves | Shifting Twisted Machinery released Sub. Machine Gun 2438 | -10/Subcaves | Build established: Scavenger-Mutant 2678 | -10/Subcaves | Disturbed a concealed Subdweller 2681 | -10/Subcaves | Befriended Subdweller 2715 | -10/Subcaves | Learned location of Recycling (-9) 2766 | -10/Subcaves | Befriended Subdweller 2766 | -10/Subcaves | Core integrity fell below 20% 2883 | -10/Subcaves | Shifting Twisted Machinery released Sub. Machine Gun 3162 | -10/Subcaves | Build established: Mutant 3291 | -10/Subcaves | Befriended Subdweller 3482 | -10/Subcaves | A swath of the cavern ceiling suddenly collapsed 3517 | -10/Subcaves | Ambushed by Subdweller buried in earth 3517 | -10/Subcaves | Destroyed by L6-J0R(R) with Subdweller Laser Last Messages --------------- 02765_ V3-11A affixes Scrap Shield Fragment to Scrap Shield. 02765_ V3-11A: "I hear you, but what does it all mean?!" 02765_ V3-11A destroyed. 02765_ WD-EX4(R) destroyed. 02766_ V6-QMU(R): "SUBSUB?" 02855_ Sub. Monowheel shoots sparks and powers down. 02856_ Dropped Broken Sub. Monowheel. Sub. Machine Gun falls loose from the Twisted Machinery. 02933_ ZM-MU6(u) builds Twisted Machinery. 03255_ V6-QMU(R) affixes Scrap Shield Fragment to Scrap Shield. 03291_ A5-01G(R): "HEREWEGO!" 03446_ Subatomizers dissect the Sub. Optics. A swath of the cavern ceiling suddenly collapses. [Achievement: Collector] Map ----- +----------------------------------------------------+ | ???????????????????????# #????# #?##???????? | | #?????????????????????## ######%## #?????????? | | ##????????????????????# ## #?###?????????? | | ##????????????????????# " #?????????????? | | ###?????????????????#### " " #?????????????? | | ###?????????????##### #?# " *!" ##????????????? | | ##????????????## #?## "[%! " ##???????????? | | ##????????????# ####" =###"" #???????????? | | ##????????????# % ###" ##???????????? | | ###????????????# "" "## ##????????????? | | ###????????????## #### "" " ##????????????? | | ##??????????????# #??## "" ##???????????? | | ###?????????????# #???# """ #???????????? | | ###?????????????# ##??##""" " ##??????????? | | ##?????????????## ##??##" " ####???????? | | ###??????????????# """##??## "" #???????? | | ##########???????# """"##??# "" #???????? | | #########??????## """"#??# ########???????? | | ### ##?????## "" ##??## ##?????????????? | | ##????## "######## #?????????????? | | #######?# ### # ###????????????? | | ########### ### #????????????? | | #### ###?# #### #### # #????????????? | | ##### #### #??## #??## ##????????????? | | ###### #### #???#RR##????# " #????????????? | | ###### #### #???##@ #????##"##????????????? | | ### ######???# ###????# #"#????????????? | | #### ###??????# #???????# ##????????????? | | ## ###???????##???????? ????????????? | | # ######??????????????? ##???????????? | | ## #######?????????????? ##????????????? | | # ###?????????????? #?????????????? | | ##??????????????# #?????????????? | | # ###??????????????? ?????????????? | | #### ######??????????????? ?????????????? | | #### #####???????????????? ?????????????? | | #### ####??????????????????? ?????????????? | | # # #####???????????????????????????????????? | | ####?????????????????????????????????????? | | %] ###??????????????????????????????????????? | | # # ###???????????????????????????????????????? | | ##########???????????????????????????????????????? | | ########????????????????????????????????????????? | | ######????????????????????????????????????????? | | # #####????????????????????????????????????????? | | ## ##????????????????????????????????????????? | | ### ##????????????????????????????????????????? | | ### ###????????????????????????????????????????? | | ### ####????????????????????????????????????????? | | ### ####?????????????????????????????????????????? | +----------------------------------------------------+ Best States ------------- Heat Dissipation 25 Energy Generation 15 Energy Capacity 250 Matter Stores 300 Matter Capacity 300 Sight Range 16 Terrain Scan Range 16 Terrain Scan Density 10 Evasion (%) 50 Recoil Reduction 2 Item Schematics ----------------- None Robot Schematics ------------------ None Fabricated ------------ Nothing Alien Tech Used ----------------- None Achievements -------------- Collector Challenges ------------ None Game ------ Seed DataStorageTrap Manual? 0 Play Time 00:18:24 Cumulative 161.6 hours Start 2024.04.30 @ 19:32:27 End 2024.04.30 @ 19:48:12 Sessions 1 Manual Loads 0 Difficulty Rogue Special Mode None Game No. 61 Rogue 47 Adventurer 14 Explorer 0 Win Type - Total 11 Types 9/0/0/1/0/0/0/0/1 Lore% 62 Gallery% 75 Achievement% 63 Wizard Run 0 Options --------- Layout 2 ASCII 0 Keyboard 0 Movement Mouse Keybinds 0 Fullscreen 1 Font 20/SmallcapsGlow Map View 50x44 Zoom Use 0% Tactical HUD 1 Map Filters NONE Filters NONE Steam 1 RUN: 93b84af2-6537-413d-b35e-920e959efeae